{"text_format":"3","workbook":"xlsx","n_sheets":2,"sheets":["UTVECKLINGSDATA","UTVECKLINGSDIAGRAM"],"not_rendered":{"charts":1,"defined_names":3},"read":"whole","date_system":"1900"}

{"sheet":"UTVECKLINGSDATA","index":0,"n_rows":23,"n_cols":8,"rows_kept":23,"merged":[[0,1,0,7],[1,2,1,7]]}
[null,"Barnes utveckling "]
[null,"Barnets namn:","Namn"]
[null,"Ålder","Kilo","Gram","Vikt (kg)","Vikt\nPercentil","Längd (cm)","Längd\nPercentil"]
[null,"Nyfödd",7,null,{"$f":"IF(COUNT(Data[[#This Row],[Kilo]:[Gram]])>0,Data[[#This Row],[Kilo]]+(Data[[#This Row],[Gram]]/16),NA())","v":7},40,19.5,70]
[null,"4 dagar",6,8,{"$f":"IF(COUNT(Data[[#This Row],[Kilo]:[Gram]])>0,Data[[#This Row],[Kilo]]+(Data[[#This Row],[Gram]]/16),NA())","v":6.5},41,19.5,70]
[null,"7 dagar",6,4.8,{"$f":"IF(COUNT(Data[[#This Row],[Kilo]:[Gram]])>0,Data[[#This Row],[Kilo]]+(Data[[#This Row],[Gram]]/16),NA())","v":6.3},42,20,71]
[null,"11 dagar",6,9.6,{"$f":"IF(COUNT(Data[[#This Row],[Kilo]:[Gram]])>0,Data[[#This Row],[Kilo]]+(Data[[#This Row],[Gram]]/16),NA())","v":6.6},43,20,71]
[null,"14 dagar",7,null,{"$f":"IF(COUNT(Data[[#This Row],[Kilo]:[Gram]])>0,Data[[#This Row],[Kilo]]+(Data[[#This Row],[Gram]]/16),NA())","v":7},44,20,71]
[null,"18 dagar",7,12,{"$f":"IF(COUNT(Data[[#This Row],[Kilo]:[Gram]])>0,Data[[#This Row],[Kilo]]+(Data[[#This Row],[Gram]]/16),NA())","v":7.75},45,21,72]
[null,"21 dagar",8,8,{"$f":"IF(COUNT(Data[[#This Row],[Kilo]:[Gram]])>0,Data[[#This Row],[Kilo]]+(Data[[#This Row],[Gram]]/16),NA())","v":8.5},46,21,72]
[null,"25 dagar",null,null,{"$f":"IF(COUNT(Data[[#This Row],[Kilo]:[Gram]])>0,Data[[#This Row],[Kilo]]+(Data[[#This Row],[Gram]]/16),NA())","v":{"$error":"#N/A"}}]
[null,"28 dagar",null,null,{"$f":"IF(COUNT(Data[[#This Row],[Kilo]:[Gram]])>0,Data[[#This Row],[Kilo]]+(Data[[#This Row],[Gram]]/16),NA())","v":{"$error":"#N/A"}}]
[null,"5 veckor",null,null,{"$f":"IF(COUNT(Data[[#This Row],[Kilo]:[Gram]])>0,Data[[#This Row],[Kilo]]+(Data[[#This Row],[Gram]]/16),NA())","v":{"$error":"#N/A"}}]
[null,"6 veckor",null,null,{"$f":"IF(COUNT(Data[[#This Row],[Kilo]:[Gram]])>0,Data[[#This Row],[Kilo]]+(Data[[#This Row],[Gram]]/16),NA())","v":{"$error":"#N/A"}}]
[null,"7 veckor",null,null,{"$f":"IF(COUNT(Data[[#This Row],[Kilo]:[Gram]])>0,Data[[#This Row],[Kilo]]+(Data[[#This Row],[Gram]]/16),NA())","v":{"$error":"#N/A"}}]
[null,"2 månader",null,null,{"$f":"IF(COUNT(Data[[#This Row],[Kilo]:[Gram]])>0,Data[[#This Row],[Kilo]]+(Data[[#This Row],[Gram]]/16),NA())","v":{"$error":"#N/A"}}]
[null,"3 månader",null,null,{"$f":"IF(COUNT(Data[[#This Row],[Kilo]:[Gram]])>0,Data[[#This Row],[Kilo]]+(Data[[#This Row],[Gram]]/16),NA())","v":{"$error":"#N/A"}}]
[null,"6 månader",null,null,{"$f":"IF(COUNT(Data[[#This Row],[Kilo]:[Gram]])>0,Data[[#This Row],[Kilo]]+(Data[[#This Row],[Gram]]/16),NA())","v":{"$error":"#N/A"}}]
[null,"9 månader",null,null,{"$f":"IF(COUNT(Data[[#This Row],[Kilo]:[Gram]])>0,Data[[#This Row],[Kilo]]+(Data[[#This Row],[Gram]]/16),NA())","v":{"$error":"#N/A"}}]
[null,"12 månader",null,null,{"$f":"IF(COUNT(Data[[#This Row],[Kilo]:[Gram]])>0,Data[[#This Row],[Kilo]]+(Data[[#This Row],[Gram]]/16),NA())","v":{"$error":"#N/A"}}]
[null,"18 månader",null,null,{"$f":"IF(COUNT(Data[[#This Row],[Kilo]:[Gram]])>0,Data[[#This Row],[Kilo]]+(Data[[#This Row],[Gram]]/16),NA())","v":{"$error":"#N/A"}}]
[null,"24 månader",null,null,{"$f":"IF(COUNT(Data[[#This Row],[Kilo]:[Gram]])>0,Data[[#This Row],[Kilo]]+(Data[[#This Row],[Gram]]/16),NA())","v":{"$error":"#N/A"}}]
[null,"36 månader",null,null,{"$f":"IF(COUNT(Data[[#This Row],[Kilo]:[Gram]])>0,Data[[#This Row],[Kilo]]+(Data[[#This Row],[Gram]]/16),NA())","v":{"$error":"#N/A"}}]

{"sheet":"UTVECKLINGSDIAGRAM","index":1,"n_rows":1,"n_cols":2,"rows_kept":1,"merged":[[0,1,1,1]]}
[null,"UTVECKLINGSDIAGRAM FÖR SPÄDBARN"]